bitfinex/quotes_BTCUSD_20250205
["timestamp","ask_amount","ask_price","bid_price","bid_amount"]
[1738764618502,0.15336614,98488.0,98487.0,0.01]
[1738764618880,0.12136414,98488.0,98473.0,0.023]
[1738764619095,0.15234863,98488.0,98487.0,0.01]
[1738764619494,0.27264863,98488.0,98487.0,0.01]
[1738764619824,0.32931863,98488.0,98486.0,0.01]
[1738764620035,0.278504,98487.0,98486.0,0.01]
[1738764621804,0.278504,98487.0,98486.0,0.02419754]
[1738764623937,0.1262,98487.0,98486.0,0.02419754]
[1738764624141,0.1262,98487.0,98486.0,0.27900619]
[1738764624527,0.1262,98487.0,98486.0,0.12670119]
[1738764624746,0.1262,98487.0,98486.0,0.14563774]
[1738764625602,0.1262,98487.0,98486.0,0.32094274]
[1738764630946,0.00027091,98488.0,98487.0,0.185304]
[1738764631144,0.00027091,98488.0,98487.0,0.30308438]
[1738764631355,0.00027091,98488.0,98487.0,0.30206918]
[1738764631580,0.00027091,98488.0,98487.0,0.32100573]
[1738764633020,0.00027091,98488.0,98487.0,0.47100573]
[1738764633220,0.00027091,98488.0,98487.0,0.48100573]
[1738764634258,0.00027091,98488.0,98487.0,0.83910573]
[1738764634583,0.00027091,98488.0,98487.0,0.8706162]
[1738764635244,0.00027091,98488.0,98487.0,0.88073311]
[1738764635538,2.8e-07,98495.0,98494.0,0.02]
[1738764635783,0.0002245,98507.0,98494.0,0.02]
[1738764635784,0.0002245,98507.0,98506.0,0.355274]
[1738764636017,0.00069193,98507.0,98506.0,2.43278209]
[1738764636263,0.00069193,98507.0,98506.0,2.46429256]
[1738764636494,0.00069193,98507.0,98506.0,2.45171864]
[1738764636987,0.00069193,98507.0,98506.0,2.48317246]
[1738764637195,0.0787,98540.0,98539.0,0.01]
[1738764637402,0.05974673,98540.0,98539.0,0.28772665]
[1738764637554,0.05974673,98540.0,98539.0,0.30218989]
[1738764637765,0.05974673,98540.0,98539.0,0.32112644]
[1738764638213,0.05974673,98540.0,98539.0,0.16890344]
[1738764638424,0.05974673,98540.0,98539.0,0.32112644]
[1738764641153,0.05974673,98540.0,98539.0,0.16890344]
[1738764642320,4.673e-05,98540.0,98539.0,0.30218989]
[1738764643164,4.673e-05,98540.0,98539.0,0.14996689]
[1738764643383,0.23006873,98540.0,98539.0,0.02446324]
[1738764644231,0.27666873,98540.0,98539.0,0.02446324]
[1738764645755,0.27677553,98540.0,98539.0,0.02446324]
[1738764648589,0.26935089,98540.0,98539.0,0.02446324]
[1738764651625,0.11712889,98540.0,98539.0,0.02446324]
[1738764653365,0.26935089,98540.0,98539.0,0.02446324]
[1738764656288,0.77676089,98540.0,98539.0,0.02446324]
[1738764658173,0.77676089,98540.0,98539.0,0.02468731]
[1738764658380,0.77676089,98540.0,98539.0,0.01468731]
[1738764658580,0.77676089,98540.0,98539.0,0.02468731]
[1738764660235,0.77676089,98540.0,98539.0,0.01468731]
[1738764660726,0.93675814,98540.0,98539.0,0.01468731]
[1738764662048,1.10021179,98540.0,98539.0,0.01468731]
[1738764662310,0.152256,98518.0,98517.0,0.01]
[1738764662559,0.229464,98513.0,98512.0,0.01]
[1738764663021,0.736874,98513.0,98512.0,0.01]
[1738764663924,0.736874,98513.0,98512.0,0.01933059]
[1738764664185,0.736874,98513.0,98512.0,0.00933059]
[1738764664730,0.736874,98513.0,98512.0,0.01933059]
[1738764665176,0.736874,98513.0,98512.0,0.00933059]
[1738764666000,0.736874,98513.0,98512.0,0.00969259]
[1738764666193,0.203022,98512.0,98508.0,0.01]
[1738764666564,0.15227,98509.0,98508.0,0.01]
[1738764666737,0.66069751,98509.0,98508.0,0.01971917]
[1738764666945,0.65968,98509.0,98508.0,0.01971917]
[1738764667319,0.65968,98509.0,98508.0,0.00971917]
[1738764667554,0.50741,98509.0,98508.0,0.01971917]
[1738764667726,0.50741,98509.0,98508.0,0.0197659]
[1738764668108,0.65968,98509.0,98508.0,0.0197659]
[1738764670436,0.65968,98509.0,98508.0,0.0198726]
[1738764671461,0.73528,98509.0,98508.0,0.0098726]
[1738764673818,0.78398,98509.0,98508.0,0.0098726]
[1738764678429,1.10798,98509.0,98508.0,0.0098726]
[1738764688438,1.16893,98509.0,98508.0,0.0098726]
[1738764689106,1.42143365,98509.0,98508.0,0.0098726]
[1738764689355,1.47405153,98509.0,98508.0,0.0098726]
[1738764689866,1.42143365,98509.0,98508.0,0.0098726]
[1738764690348,1.42143365,98509.0,98508.0,0.00015343]
[1738764714574,1.42143365,98509.0,98508.0,4.3e-07]
[1738764714789,2.92143365,98509.0,98508.0,4.3e-07]
[1738764715465,0.444662,98482.0,98481.0,0.08143654]
[1738764715662,0.444662,98482.0,98481.0,0.09132346]
[1738764715663,0.952072,98482.0,98481.0,0.09132346]
[1738764715863,0.952072,98482.0,98481.0,0.00988692]
[1738764719223,1.37857565,98482.0,98481.0,0.00988692]
[1738764719475,1.4810793,98482.0,98481.0,0.00988692]
[1738764720171,1.4810793,98482.0,98481.0,4.5e-07]
[1738764720385,1.4810793,98482.0,98451.0,0.08143654]
[1738764720386,0.152343,98462.0,98454.0,0.01]
[1738764720590,0.659753,98462.0,98461.0,0.09085099]
[1738764720793,0.659753,98462.0,98461.0,0.00941445]
[1738764721238,0.870703,98462.0,98461.0,0.00941445]
[1738764721490,0.213299,98458.0,98439.0,0.01]
[1738764721707,0.870709,98458.0,98457.0,0.00699426]
[1738764721913,0.870709,98458.0,98457.0,0.0001068]
[1738764723155,0.809759,98458.0,98457.0,0.0001068]
[1738764723283,0.82941606,98458.0,98457.0,0.0001068]
[1738764724337,0.809759,98458.0,98457.0,0.0001068]
[1738764725129,1.215159,98458.0,98457.0,0.0001068]
[1738764725409,1.31766265,98458.0,98457.0,0.0001068]
[1738764726391,1.36436265,98458.0,98457.0,0.0001068]
[1738764733138,1.53209265,98458.0,98457.0,0.0001068]
[1738764733356,1.4668663,98458.0,98457.0,0.0001068]
[1738764734701,1.4668663,98458.0,98457.0,8e-07]
[1738764734702,1.36436265,98458.0,98457.0,8e-07]
[1738764734898,1.37436265,98458.0,98423.0,0.01]
[1738764735098,0.276973,98442.0,98420.0,0.0001069]
[1738764735346,1.03688665,98442.0,98420.0,0.0001069]
[1738764736331,1.1393903,98442.0,98441.0,4.672e-05]
[1738764736485,1.1393903,98442.0,98441.0,7.2e-07]
[1738764736702,1.1393903,98442.0,98420.0,0.0001069]
[1738764736703,0.302375,98441.0,98440.0,7.9e-07]
[1738764736904,0.98888865,98441.0,98440.0,5.2e-07]
[1738764737158,1.0913923,98441.0,98440.0,5.2e-07]
[1738764737553,0.0766,98440.0,98420.0,0.0001069]
[1738764737764,0.378984,98435.0,98420.0,0.0001069]
[1738764737935,1.31289765,98435.0,98420.0,0.0001069]
[1738764748371,1.31289765,98435.0,98434.0,0.0641552]
[1738764748773,1.23629765,98435.0,98434.0,0.0641552]
[1738764751067,1.3388013,98435.0,98434.0,0.0641552]
[1738764751704,1.23629765,98435.0,98434.0,0.0641552]
[1738764753486,1.29722765,98435.0,98434.0,0.0641552]
[1738764757444,1.37282765,98435.0,98434.0,0.0641552]
[1738764759075,2.87282765,98435.0,98434.0,0.0641552]
[1738764759499,0.15,98434.0,98420.0,0.0001069]
[1738764759709,0.486736,98421.0,98420.0,0.00024692]
[1738764759928,1.09664965,98421.0,98420.0,0.00024692]
[1738764760132,1.10664965,98421.0,98420.0,9.2e-07]
[1738764760795,1.1559727,98421.0,98420.0,9.2e-07]
[1738764761016,1.28993893,98421.0,98420.0,9.2e-07]
[1738764761420,1.18743528,98421.0,98420.0,9.2e-07]
[1738764761878,1.1973838,98421.0,98420.0,9.2e-07]
[1738764762078,0.363361,98405.0,98404.0,0.0001069]
[1738764762324,1.29727465,98405.0,98404.0,0.0001069]
[1738764763175,1.23634465,98405.0,98404.0,0.0001069]
[1738764763381,1.31734465,98405.0,98404.0,0.0001069]
[1738764763810,1.33631644,98405.0,98404.0,0.0001069]
[1738764766608,1.43882009,98405.0,98404.0,0.0001069]
[1738764767233,1.4198483,98405.0,98404.0,0.0001069]
[1738764767607,1.43012239,98405.0,98404.0,0.0001069]
[1738764771133,1.47722239,98405.0,98404.0,0.0001069]
[1738764771344,1.49613589,98405.0,98404.0,0.0001069]
[1738764771817,1.39363224,98405.0,98404.0,0.0001069]
[1738764772052,1.26553224,98405.0,98404.0,0.0001069]
[1738764772480,1.24661874,98405.0,98404.0,0.0001069]
[1738764772677,1.14411509,98405.0,98404.0,0.0001069]
[1738764775616,0.99411509,98405.0,98404.0,0.0001069]
[1738764775822,0.983841,98405.0,98404.0,0.0101069]
[1738764777431,0.659841,98405.0,98404.0,0.0101069]
[1738764786345,0.800771,98405.0,98404.0,0.0001069]
[1738764789150,0.72035944,98405.0,98404.0,0.0001069]
[1738764793266,0.65942944,98405.0,98404.0,0.0001069]
[1738764793483,0.65942944,98405.0,98404.0,0.0101069]
[1738764793484,0.50741,98405.0,98404.0,0.0101069]
[1738764793685,0.50741,98405.0,98404.0,0.11261055]
[1738764793956,0.659841,98405.0,98404.0,0.0101069]
[1738764794159,0.659841,98405.0,98404.0,0.0001069]
[1738764794512,0.720771,98405.0,98404.0,0.0001069]
[1738764796415,0.7309242,98405.0,98404.0,0.0001069]
[1738764798249,0.6699942,98405.0,98404.0,0.0001069]
[1738764801351,0.7501942,98405.0,98404.0,0.0001069]
[1738764802756,0.95882785,98405.0,98404.0,0.0001069]
[1738764802913,1.43282785,98405.0,98404.0,0.0001069]
[1738764803114,1.37189785,98405.0,98404.0,0.0001069]
[1738764805154,1.2693942,98405.0,98404.0,0.0001069]
[1738764810389,1.2696187,98405.0,98404.0,0.0001069]
[1738764811777,1.37212235,98405.0,98404.0,0.0001069]
[1738764811958,2.87212235,98405.0,98404.0,0.0001069]
[1738764812674,1.37212235,98405.0,98404.0,0.0001069]
[1738764812880,1.22212235,98405.0,98404.0,0.0001069]
[1738764813083,1.1805487,98405.0,98404.0,0.0001069]
[1738764813938,1.1353487,98405.0,98404.0,0.0001069]
[1738764814768,1.0551487,98405.0,98404.0,0.0001069]
[1738764818054,0.9942187,98405.0,98404.0,0.0001069]
[1738764822270,0.6702187,98405.0,98404.0,0.0101069]
[1738764822642,0.6600655,98405.0,98404.0,0.0101069]
[1738764824488,0.5076345,98405.0,98404.0,0.0101069]
[1738764824692,0.5076345,98405.0,98404.0,0.11261055]
[1738764830908,0.5076345,98405.0,98404.0,0.26504255]
[1738764835463,0.5076345,98405.0,98404.0,0.11261055]
[1738764835600,0.5076345,98405.0,98404.0,0.0101069]
[1738764835601,0.6600655,98405.0,98404.0,0.0101069]
[1738764835780,0.6600655,98405.0,98404.0,0.0001069]
[1738764835986,0.6600655,98405.0,98404.0,0.0101069]
[1738764836194,0.6600655,98405.0,98404.0,0.0001069]
[1738764836397,0.6600655,98405.0,98404.0,0.0101069]
[1738764843778,0.5076345,98405.0,98404.0,0.0101069]
[1738764849991,0.5076345,98405.0,98404.0,0.1625389]
[1738764850235,0.5076345,98405.0,98404.0,0.26504255]
[1738764854611,0.5076345,98405.0,98404.0,0.11261055]
[1738764855136,0.5076345,98405.0,98404.0,0.26504255]
[1738764867174,0.5076345,98405.0,98404.0,0.28804255]
[1738764868376,0.5076345,98405.0,98404.0,0.26504255]
[1738764871797,0.5076345,98405.0,98404.0,0.28804255]
[1738764883126,0.5064345,98405.0,98404.0,0.28804255]
[1738764886267,0.5064345,98405.0,98404.0,0.50224255]
[1738764886589,0.5064345,98405.0,98404.0,0.53394131]
[1738764886795,0.5064345,98405.0,98404.0,0.54394131]
[1738764887178,0.5064345,98405.0,98404.0,0.53394131]
[1738764894905,0.5064345,98405.0,98404.0,0.54394131]
[1738764898175,0.4874345,98405.0,98404.0,0.54394131]
[1738764898400,0.4874345,98405.0,98404.0,1.08034131]
[1738764901700,0.4874345,98405.0,98404.0,1.01614131]
[1738764901880,0.4874345,98405.0,98404.0,1.00614131]
[1738764902546,0.4874345,98405.0,98404.0,0.97444255]
[1738764902914,0.4684345,98405.0,98404.0,0.97444255]
[1738764904187,0.4684345,98405.0,98404.0,0.46967252]
[1738764904402,0.4684345,98405.0,98404.0,0.47967252]
[1738764906002,0.4684345,98405.0,98404.0,0.44804255]
[1738764906208,0.4684345,98405.0,98404.0,0.47967251]
[1738764908070,0.4494345,98405.0,98404.0,0.47967251]
[1738764908917,0.4494345,98405.0,98404.0,0.44804255]
[1738764909131,0.4494345,98405.0,98404.0,0.47967407]
[1738764910108,0.4494345,98405.0,98404.0,0.79997407]
[1738764910273,0.30480915,98405.0,98404.0,0.76834255]
[1738764910486,0.26416115,98405.0,98404.0,0.85944469]
[1738764910686,0.26416115,98405.0,98404.0,0.8910684]
[1738764910889,0.26416115,98405.0,98404.0,0.9010684]
[1738764911407,0.20318915,98405.0,98404.0,0.9010684]
[1738764911605,0.16254115,98405.0,98404.0,0.9010684]
[1738764912069,0.0002245,98405.0,98404.0,0.9010684]
[1738764912358,5e-07,98405.0,98404.0,0.9010684]
[1738764912943,0.029425,98430.0,98429.0,0.162394]
[1738764913192,0.029425,98430.0,98429.0,0.28789765]
[1738764913967,0.00011851,98430.0,98429.0,0.28789765]
[1738764914986,0.00011851,98430.0,98429.0,0.43789765]
[1738764916349,0.00011851,98430.0,98429.0,0.4568936]
[1738764917228,0.00011851,98430.0,98429.0,0.7771936]
[1738764917435,0.00011851,98430.0,98429.0,0.78742516]
[1738764921212,0.00011851,98430.0,98429.0,0.78753196]
[1738764921734,0.00034279,98430.0,98429.0,0.78753196]
[1738764922175,0.00034279,98430.0,98429.0,0.76853601]
[1738764923048,0.00034279,98430.0,98429.0,0.8001746]
[1738764926251,0.00034279,98430.0,98429.0,0.76853601]
[1738764928000,0.00034279,98430.0,98429.0,0.80017253]
[1738764933910,0.078,98437.0,98430.0,0.023]
[1738764934113,0.078,98437.0,98436.0,0.42788665]
[1738764934313,0.078,98437.0,98436.0,1.4748856]
[1738764934923,0.078,98437.0,98436.0,1.7951856]
[1738764936230,0.0781068,98437.0,98436.0,1.7951856]
[1738764937264,0.0001068,98437.0,98436.0,0.77982317]
[1738764937659,0.0001068,98437.0,98436.0,0.78982317]
[1738764937857,8e-07,98437.0,98436.0,0.80792317]
[1738764938054,0.0828,98456.0,98455.0,0.335353]
[1738764938236,0.00011875,98456.0,98455.0,0.43785665]
[1738764939389,0.00011875,98456.0,98455.0,0.75815665]
[1738764940016,0.00011875,98456.0,98455.0,0.78975775]
[1738764941297,0.00011875,98456.0,98455.0,0.79975775]
[1738764942261,0.0828,98473.0,98472.0,0.335327]
[1738764942505,0.0469,98479.0,98476.0,0.185321]
[1738764942711,0.00546743,98477.0,98476.0,0.28883999]
[1738764942914,0.00546743,98477.0,98476.0,0.28782465]
[1738764943115,0.03336743,98479.0,98478.0,0.185318]
[1738764943428,0.03336743,98479.0,98478.0,0.28782165]
[1738764943555,0.0784,98480.0,98479.0,0.162316]
[1738764943751,0.0784,98480.0,98479.0,0.28781965]
[1738764943951,0.0804,98487.0,98480.0,0.173]
[1738764944156,0.0804,98487.0,98480.0,0.42883391]
[1738764944394,0.0804,98487.0,98480.0,0.42781865]
[1738764945119,0.0002245,98504.0,98480.0,0.43781865]
[1738764945279,0.0787,98493.0,98480.0,0.43781865]
[1738764947322,0.0498,98497.0,98480.0,0.44812659]
[1738764947561,0.08142428,98481.0,98480.0,0.44812659]
[1738764951707,0.08074936,98481.0,98480.0,0.44812659]
[1738764956564,0.0498,98497.0,98496.0,0.18529]
[1738764956774,0.04994017,98497.0,98496.0,0.28779365]
[1738764957205,0.13104017,98497.0,98496.0,0.28779365]
[1738764961000,0.08124017,98497.0,98496.0,0.29777245]
[1738764965260,0.08124017,98497.0,98496.0,0.28779365]
[1738764965518,0.08124017,98497.0,98496.0,0.26479365]
[1738764973581,0.08124017,98497.0,98496.0,0.11250365]
[1738764973807,0.23352817,98497.0,98496.0,0.11250365]
[1738764974240,0.27992817,98497.0,98496.0,0.11250365]
[1738764974439,0.27992817,98497.0,98492.0,0.01]
[1738764974440,0.0456,98496.0,98492.0,0.01]
[1738764974617,0.15330851,98495.0,98494.0,0.01]
[1738764974773,0.197891,98495.0,98494.0,0.00995004]
[1738764974975,0.275491,98495.0,98494.0,0.00995004]
[1738764975176,0.1232,98495.0,98494.0,0.11245369]
[1738764975408,0.1232,98495.0,98494.0,0.26474669]
[1738764975565,0.1232,98495.0,98494.0,0.11245369]
[1738764976423,0.275491,98495.0,98494.0,0.11245369]
[1738764976965,0.1232,98495.0,98481.0,0.00022428]
[1738764977168,0.276891,98495.0,98494.0,0.00995004]
[1738764977915,0.276891,98495.0,98494.0,0.11245369]
[1738764981263,0.276891,98495.0,98494.0,0.10250365]
[1738764981472,0.276891,98495.0,98486.0,0.00995004]
[1738764981473,0.231204,98487.0,98486.0,0.00995004]
[1738764981718,0.231204,98487.0,98486.0,0.11245369]
[1738764982725,0.0789,98487.0,98486.0,0.26475869]
[1738764985161,0.0813,98494.0,98493.0,0.00995004]
[1738764985324,0.00024697,98497.0,98496.0,0.00995004]
[1738764985534,0.00024697,98497.0,98496.0,0.28875885]
[1738764985750,0.00024697,98497.0,98496.0,0.43774369]
[1738764985960,0.00024697,98497.0,98496.0,0.46938055]
[1738764987457,0.00024697,98497.0,98496.0,0.43774369]
[1738764987681,0.00024697,98497.0,98496.0,0.46936637]
[1738764988524,0.00024697,98497.0,98496.0,0.80001349]
[1738764991853,0.00024697,98497.0,98496.0,0.81001349]
[1738764992972,0.05939575,98525.0,98524.0,0.16219704]
[1738764993176,0.05939575,98525.0,98524.0,0.26470069]
[1738764994244,0.0452,98533.0,98528.0,0.16219004]
[1738764994378,0.0452,98533.0,98528.0,0.26469369]
[1738764994379,0.0003644,98529.0,98528.0,0.26469369]
[1738764995087,0.0003644,98529.0,98528.0,0.28769369]
[1738764996778,0.0003644,98529.0,98528.0,0.44779267]
[1738764997276,0.0003644,98529.0,98528.0,0.76809267]
[1738765013063,0.06462658,98544.0,98529.0,0.023]
[1738765013296,0.06462658,98544.0,98543.0,0.175217]
[1738765013501,0.06462658,98544.0,98543.0,0.27772065]
[1738765015841,0.06462658,98544.0,98543.0,0.26467069]
[1738765016610,0.06462658,98544.0,98543.0,0.11245369]
[1738765016839,0.11392658,98544.0,98543.0,0.11245369]
[1738765018909,0.11392658,98544.0,98543.0,0.10250365]
[1738765019116,0.11392658,98544.0,98543.0,0.11245369]
[1738765019338,0.11392658,98544.0,98543.0,0.10250365]
[1738765019748,0.11392658,98544.0,98543.0,0.11245369]
[1738765020330,0.11392658,98544.0,98543.0,0.10250365]
[1738765020641,0.11392658,98544.0,98543.0,0.11245369]
[1738765022069,0.11392658,98544.0,98543.0,0.26467069]
[1738765024073,0.0001068,98555.0,98554.0,0.16215004]
[1738765024272,0.0001068,98555.0,98554.0,0.26465369]
[1738765025688,0.0001068,98555.0,98554.0,0.28765369]
[1738765025895,0.0001068,98555.0,98554.0,0.43765369]
[1738765026103,0.0002245,98565.0,98554.0,0.43765369]
[1738765026104,0.0002245,98565.0,98562.0,0.17213804]
[1738765026489,0.00036437,98563.0,98562.0,1.3455405]
[1738765026691,0.00036437,98563.0,98562.0,1.34452623]
[1738765027133,0.0002245,98565.0,98563.0,0.023]
[1738765027350,0.0002245,98565.0,98564.0,0.78052504]
[1738765027553,0.0002245,98565.0,98564.0,0.77951076]
[1738765027975,0.0002245,98565.0,98564.0,0.81217344]
[1738765028156,0.05836918,98585.0,98584.0,0.152154]
[1738765028363,0.05836918,98585.0,98584.0,0.25465765]
[1738765030224,0.0477,98595.0,98594.0,0.00995004]
[1738765030418,0.04816688,98595.0,98594.0,0.11245369]
[1738765030562,0.04816688,98595.0,98594.0,0.26459269]
[1738765031018,0.12736688,98595.0,98594.0,0.11245369]
[1738765031587,0.12736688,98595.0,98594.0,0.26459269]
[1738765032008,0.12736688,98595.0,98594.0,0.11245369]
[1738765033414,0.12736688,98595.0,98594.0,0.26459269]
[1738765037930,0.00046688,98595.0,98594.0,0.26459269]
[1738765038503,0.00057368,98595.0,98594.0,0.26459269]
[1738765043186,0.00057368,98595.0,98594.0,0.28759269]
[1738765043389,0.00057368,98595.0,98594.0,0.29270443]
[1738765045457,0.00057368,98595.0,98594.0,0.31772456]
[1738765046091,0.00057368,98595.0,98594.0,0.3280114]
[1738765046612,0.00057368,98595.0,98594.0,0.34437953]
[1738765046844,0.00057368,98595.0,98594.0,0.49437953]
[1738765048046,0.152091,98625.0,98615.0,0.152105]
[1738765048246,0.152091,98625.0,98616.0,0.10250365]
[1738765048475,0.152091,98625.0,98616.0,0.25460765]
[1738765048653,0.152091,98625.0,98616.0,0.10250365]
[1738765050108,0.26285888,98626.0,98616.0,0.10250365]
[1738765050311,0.41494988,98626.0,98616.0,0.10250365]
[1738765050519,0.06007288,98626.0,98616.0,0.10250365]
[1738765050732,0.00101751,98625.0,98616.0,0.10250365]
[1738765050940,0.152098,98621.0,98616.0,0.10250365]
[1738765051130,0.0766,98620.0,98616.0,0.10250365]
[1738765052461,0.228698,98620.0,98619.0,0.00995004]
[1738765052883,0.047,98615.0,98594.0,0.15]
[1738765053096,0.152111,98612.0,98595.0,0.10250365]
[1738765053299,0.047,98615.0,98614.0,0.00995004]
[1738765053505,0.279906,98615.0,98614.0,0.00995004]
[1738765053730,0.279906,98615.0,98611.0,0.00995004]
[1738765053731,0.152111,98612.0,98611.0,0.00995004]
[1738765053935,0.199106,98615.0,98614.0,0.00995004]
[1738765054525,0.28684876,98615.0,98614.0,0.00995004]
[1738765054760,0.276906,98615.0,98614.0,0.00995004]
[1738765055822,0.15212,98606.0,98605.0,0.00995004]
[1738765056062,0.152117,98609.0,98608.0,0.00995004]
[1738765056269,0.0758,98613.0,98609.0,0.00995004]
[1738765056443,0.0758,98613.0,98612.0,0.00995004]
[1738765056804,0.0758,98613.0,98612.0,0.11245369]
[1738765057536,0.0758,98613.0,98612.0,0.26456469]
[1738765057836,0.1252,98625.0,98624.0,0.00995004]
[1738765058037,0.1252,98625.0,98624.0,0.26454569]
[1738765058241,0.00024686,98626.0,98624.0,0.11245369]
[1738765058438,0.00024686,98626.0,98625.0,0.25459465]
[1738765060277,0.00024686,98626.0,98625.0,0.26454469]
[1738765062004,0.00024686,98626.0,98625.0,0.28754469]
[1738765064829,0.00024686,98626.0,98625.0,0.29769191]
[1738765065702,0.00024686,98626.0,98625.0,1.31305434]
[1738765066315,0.00024686,98626.0,98625.0,1.46305434]
[1738765067317,0.00024686,98626.0,98625.0,1.47305434]
[1738765067773,0.004118,98635.0,98627.0,0.18503804]
[1738765067973,0.0012247,98635.0,98634.0,0.31202704]
[1738765068205,0.0012247,98635.0,98634.0,1.45880381]
[1738765069724,0.0012247,98635.0,98634.0,1.58460381]
[1738765070776,0.0012247,98635.0,98634.0,0.42758065]
[1738765070955,0.0012247,98635.0,98634.0,0.43753069]
[1738765072883,0.0012247,98635.0,98634.0,0.52493069]
[1738765073048,0.05792209,98667.0,98666.0,0.16197804]
[1738765073248,0.05806207,98667.0,98666.0,0.26448169]
[1738765073858,0.05806207,98667.0,98666.0,0.11245369]
[1738765075252,0.05806207,98667.0,98666.0,0.26448169]
[1738765075451,0.05806207,98667.0,98666.0,0.25453165]
[1738765075695,0.05806207,98667.0,98666.0,0.26448169]
[1738765076661,0.05806207,98667.0,98666.0,0.11245369]
[1738765077162,0.05806207,98667.0,98662.0,0.00995004]
[1738765077163,0.152033,98663.0,98662.0,0.00995004]
[1738765077368,0.00101751,98666.0,98665.0,0.00995004]
[1738765077586,0.15304551,98666.0,98665.0,0.00995004]
[1738765078196,0.00101751,98666.0,98663.0,0.00995004]
[1738765078395,0.00101751,98666.0,98661.0,0.00995004]
[1738765078598,0.152034,98662.0,98661.0,0.11245369]
[1738765078755,0.232634,98662.0,98661.0,0.00995004]
[1738765080872,0.23254333,98662.0,98661.0,0.00995004]
[1738765082442,0.28034333,98662.0,98661.0,0.00995004]
[1738765083670,0.1284,98662.0,98661.0,0.00995004]
[1738765083892,0.280434,98662.0,98661.0,0.00995004]
[1738765084398,0.1284,98662.0,98661.0,0.00995004]
[1738765086567,0.280434,98662.0,98661.0,0.00995004]
[1738765088815,0.1284,98662.0,98661.0,0.00995004]
[1738765091731,0.1284,98662.0,98661.0,0.01017411]
[1738765092235,0.1285067,98662.0,98661.0,0.01017411]
[1738765092771,0.0001067,98662.0,98661.0,0.26471276]
[1738765094368,0.01017868,98693.0,98683.0,0.152001]
[1738765094622,0.0001067,98694.0,98693.0,0.16193604]
[1738765094936,0.0001068,98725.0,98704.0,0.31191904]
[1738765095113,0.00046642,98705.0,98704.0,2.37155459]
[1738765095357,4.2e-07,98705.0,98704.0,1.45278512]
[1738765095536,0.0001068,98725.0,98714.0,0.31190404]
[1738765095686,0.00023987,98715.0,98714.0,0.26440769]
[1738765095889,0.00023987,98715.0,98714.0,0.27440769]
[1738765096119,0.0001068,98725.0,98714.0,0.27440769]
[1738765096120,0.0001068,98725.0,98718.0,0.16189704]
[1738765096329,0.0001068,98725.0,98718.0,0.28841342]
[1738765096500,0.0001068,98725.0,98718.0,0.32497995]
[1738765097467,0.0001068,98725.0,98718.0,0.15003295]
[1738765098095,0.1520438,98725.0,98718.0,0.15003295]
[1738765098305,0.0001068,98725.0,98718.0,0.15003295]
[1738765098516,0.1520528,98719.0,98718.0,0.15003295]
[1738765098929,0.1520528,98719.0,98718.0,0.03757926]
[1738765099340,0.15196,98710.0,98708.0,0.00995004]
[1738765099546,0.15196,98710.0,98709.0,0.00995004]
[1738765099753,0.202609,98712.0,98707.0,0.00995004]
[1738765099984,0.202609,98712.0,98711.0,0.00995004]
[1738765101887,0.0459,98717.0,98716.0,0.00995004]
[1738765102085,0.04580935,98717.0,98716.0,0.00995004]
[1738765102368,0.202577,98728.0,98716.0,0.00995004]
[1738765102369,0.2114757,98726.0,98718.0,0.00995004]
[1738765102559,0.15194,98723.0,98718.0,0.11245369]
[1738765102980,0.1608297,98726.0,98718.0,0.11245369]
[1738765103144,0.151939,98724.0,98718.0,0.11245369]
[1738765103951,0.0088937,98726.0,98718.0,0.26440069]
[1738765104374,0.1608297,98726.0,98718.0,0.11245369]
[1738765104574,0.0088937,98726.0,98718.0,0.11245369]
[1738765104782,0.0088937,98726.0,98718.0,0.11346657]
[1738765104998,0.0088937,98726.0,98718.0,0.11245369]
[1738765105192,0.0088937,98726.0,98718.0,0.11346653]
[1738765105422,0.0088937,98726.0,98718.0,0.11245369]
[1738765105706,0.0088937,98726.0,98718.0,0.11346653]
[1738765106357,0.0088937,98726.0,98718.0,0.13646653]
[1738765106771,0.0088937,98726.0,98718.0,0.11245369]
[1738765107384,0.151941,98723.0,98718.0,0.11245369]
[1738765107613,0.0088937,98726.0,98718.0,0.11245369]
[1738765107820,0.0088937,98726.0,98718.0,0.13545369]
[1738765108021,0.0088937,98726.0,98718.0,0.28740069]
[1738765112464,0.0088937,98726.0,98718.0,0.43740069]
[1738765112589,8e-07,98725.0,98724.0,0.05295004]
[1738765112811,8e-07,98725.0,98724.0,0.28845419]
[1738765113037,0.1031513,98734.0,98733.0,0.00995004]
[1738765113246,0.1031513,98734.0,98731.0,0.00995004]
[1738765113449,0.2550743,98734.0,98733.0,0.00995004]
[1738765113889,0.1031513,98734.0,98727.0,0.00995004]
[1738765114106,0.151932,98728.0,98727.0,0.00995004]
[1738765115019,0.202566,98733.0,98730.0,0.00995004]
[1738765115020,0.151929,98731.0,98730.0,0.00995004]
[1738765116065,0.151931,98729.0,98728.0,0.00995004]
[1738765116264,0.15294851,98729.0,98727.0,0.10250365]
[1738765116715,0.15294851,98729.0,98727.0,0.11245369]
[1738765116918,0.1031513,98734.0,98728.0,0.11245369]
[1738765117128,0.1031513,98734.0,98733.0,0.00995004]
[1738765117315,0.0273513,98734.0,98733.0,0.11245369]
[1738765119205,0.0273513,98734.0,98733.0,0.26437769]
[1738765121561,0.0273513,98734.0,98733.0,0.11245369]
[1738765121741,0.0273513,98734.0,98733.0,0.26437769]
[1738765121899,0.0273513,98734.0,98733.0,0.11245369]
[1738765122103,0.0273513,98734.0,98733.0,0.26437769]
[1738765122316,0.0273513,98734.0,98733.0,0.11245369]
[1738765122877,0.0273513,98734.0,98733.0,0.26437769]
[1738765123693,0.0273513,98734.0,98733.0,0.11245369]
[1738765124203,0.1792743,98734.0,98733.0,0.11245369]
[1738765124749,0.2544743,98734.0,98733.0,0.11245369]
[1738765124951,0.2544743,98734.0,98733.0,0.00995004]
[1738765125619,0.2544743,98734.0,98720.0,0.00995004]
[1738765125620,0.1025513,98734.0,98720.0,0.00995004]
[1738765125838,0.151943,98721.0,98720.0,0.00995004]
[1738765126034,0.0477,98724.0,98716.0,0.00995004]
[1738765126243,0.151947,98718.0,98717.0,0.10250365]
[1738765126392,0.151951,98716.0,98715.0,0.0101739]
[1738765127402,0.234551,98716.0,98715.0,0.00022386]
[1738765130175,0.234551,98716.0,98715.0,0.0101739]
[1738765133823,0.234551,98716.0,98715.0,0.00022386]
[1738765134017,0.234551,98716.0,98715.0,0.0101739]
[1738765134713,0.0001066,98719.0,98715.0,0.0101739]
[1738765134714,0.0001066,98719.0,98718.0,0.00995004]
[1738765134917,0.0001066,98719.0,98718.0,0.11245369]
[1738765136167,0.1520526,98719.0,98718.0,0.11245369]
[1738765136377,0.1520526,98719.0,98718.0,0.10250365]
[1738765136577,0.1520526,98719.0,98718.0,0.11245369]
[1738765137187,0.0001066,98719.0,98718.0,0.11245369]